[Event "Titled Tuesday Blitz March 01 Early 2022"]
[White "Kretov, Evgenij"]
[Black "Petrova, Irina"]
[WhiteFideId "4167821"]
[BlackFideId "14124122"]
[WhiteElo "2303"]
[BlackElo "1988"]
[Result "1-0"]
[Round "01"]
[TimeControl "180+1"]
[Date "2022.03.01"]
[WhiteClock "0:01:48"]
[BlackClock "0:01:13"]

1. d4 {[%clk 0:02:55]}  d5 {[%clk 0:02:59]} 2. c4 {[%clk 0:02:55]}  c6 {[%clk 0:02:59]} 3. Nc3 {[%clk 0:02:55]}  Nf6 {[%clk 0:02:59]} 4. e3 {[%clk 0:02:55]}  Bf5 {[%clk 0:02:58]} 5. cxd5 {[%clk 0:02:55]}  cxd5 {[%clk 0:02:57]} 6. Qb3 {[%clk 0:02:55]}  Qd7 {[%clk 0:02:47]} 7. Nf3 {[%clk 0:02:52]}  e6 {[%clk 0:02:37]} 8. Bb5 {[%clk 0:02:42]}  Nc6 {[%clk 0:02:37]} 9. Ne5 {[%clk 0:02:42]}  Qc8 {[%clk 0:02:36]} 10. Qa4 {[%clk 0:02:42]}  Bd6 {[%clk 0:02:17]} 11. Nxc6 {[%clk 0:02:38]}  bxc6 {[%clk 0:02:16]} 12. Bxc6+ {[%clk 0:02:38]}  Ke7 {[%clk 0:02:17]} 13. Bxa8 {[%clk 0:02:38]}  Qxa8 {[%clk 0:02:18]} 14. O-O {[%clk 0:02:29]}  Rc8 {[%clk 0:02:12]} 15. h3 {[%clk 0:02:06]}  Rc4 {[%clk 0:01:55]} 16. Qa6 {[%clk 0:02:00]}  Ne4 {[%clk 0:01:17]} 17. Nb5 {[%clk 0:01:55]}  Bb8 {[%clk 0:01:17]} 18. b3 {[%clk 0:01:52]}  Rc2 {[%clk 0:01:13]} 19. Ba3+ {[%clk 0:01:51]}  Ke8 {[%clk 0:01:13]} 20. Rac1 {[%clk 0:01:48]} 1-0


[Site "https://www.chess.com"]

[Event "Titled Tuesday Blitz March 01 Early 2022"]
[White "Krishnan, Varun"]
[Black "Putri, Regita Desyari"]
[WhiteFideId "5054508"]
[BlackFideId "7109083"]
[WhiteElo "2582"]
[BlackElo "1930"]
[Result "1-0"]
[Round "01"]
[TimeControl "180+1"]
[Date "2022.03.01"]
[WhiteClock "0:00:20"]
[BlackClock "0:00:13"]

1. e4 {[%clk 0:02:53]}  e5 {[%clk 0:02:59]} 2. Nf3 {[%clk 0:02:53]}  Nc6 {[%clk 0:02:58]} 3. Bb5 {[%clk 0:02:53]}  a6 {[%clk 0:02:58]} 4. Ba4 {[%clk 0:02:53]}  Nf6 {[%clk 0:02:58]} 5. O-O {[%clk 0:02:53]}  Be7 {[%clk 0:02:56]} 6. Re1 {[%clk 0:02:53]}  b5 {[%clk 0:02:56]} 7. Bb3 {[%clk 0:02:53]}  d6 {[%clk 0:02:56]} 8. a4 {[%clk 0:02:53]}  b4 {[%clk 0:02:52]} 9. a5 {[%clk 0:02:50]}  O-O {[%clk 0:02:48]} 10. d3 {[%clk 0:02:50]}  Bg4 {[%clk 0:02:25]} 11. Nbd2 {[%clk 0:02:46]}  Nd4 {[%clk 0:02:23]} 12. Bc4 {[%clk 0:02:46]}  c5 {[%clk 0:02:22]} 13. c3 {[%clk 0:02:44]}  Nc6 {[%clk 0:02:19]} 14. Nf1 {[%clk 0:02:41]}  Nxa5 {[%clk 0:02:16]} 15. Ba2 {[%clk 0:02:32]}  Nc6 {[%clk 0:02:09]} 16. Ne3 {[%clk 0:02:32]}  Bh5 {[%clk 0:01:59]} 17. Nd5 {[%clk 0:02:21]}  a5 {[%clk 0:01:50]} 18. Nxf6+ {[%clk 0:02:13]}  Bxf6 {[%clk 0:01:49]} 19. Bd5 {[%clk 0:02:12]}  Rc8 {[%clk 0:01:48]} 20. Qa4 {[%clk 0:02:08]}  Ne7 {[%clk 0:01:22]} 21. Nd2 {[%clk 0:01:51]}  Nxd5 {[%clk 0:00:47]} 22. exd5 {[%clk 0:01:52]}  Bg6 {[%clk 0:00:47]} 23. Ne4 {[%clk 0:01:46]}  Bxe4 {[%clk 0:00:47]} 24. dxe4 {[%clk 0:01:42]}  Ra8 {[%clk 0:00:47]} 25. Qc6 {[%clk 0:01:32]}  Be7 {[%clk 0:00:44]} 26. Be3 {[%clk 0:01:15]}  Qc8 {[%clk 0:00:43]} 27. Qb5 {[%clk 0:01:05]}  Qc7 {[%clk 0:00:39]} 28. Rec1 {[%clk 0:00:58]}  Rfb8 {[%clk 0:00:38]} 29. Qe2 {[%clk 0:00:57]}  b3 {[%clk 0:00:37]} 30. Ra4 {[%clk 0:00:54]}  Bd8 {[%clk 0:00:30]} 31. Rca1 {[%clk 0:00:53]}  Qd7 {[%clk 0:00:29]} 32. Bd2 {[%clk 0:00:52]}  Ra7 {[%clk 0:00:16]} 33. Qd3 {[%clk 0:00:50]}  Rba8 {[%clk 0:00:17]} 34. h3 {[%clk 0:00:50]}  g6 {[%clk 0:00:16]} 35. Qe2 {[%clk 0:00:46]}  f5 {[%clk 0:00:16]} 36. exf5 {[%clk 0:00:46]}  Qxf5 {[%clk 0:00:16]} 37. Qc4 {[%clk 0:00:36]}  Qc2 {[%clk 0:00:17]} 38. Bh6 {[%clk 0:00:22]}  Qxb2 {[%clk 0:00:15]} 39. Qg4 {[%clk 0:00:21]}  Qxc3 {[%clk 0:00:13]} 40. Qe6+ {[%clk 0:00:21]}  Kh8 {[%clk 0:00:13]} 41. Qe8# {[%clk 0:00:20]} 1-0


[Site "https://www.chess.com"]

[Event "Titled Tuesday Blitz March 01 Early 2022"]
[White "Maatman, Nick"]
[Black "Dubov, Daniil"]
[WhiteFideId "1040391"]
[BlackFideId "24126055"]
[WhiteElo "2519"]
[BlackElo "2791"]
[Result "0-1"]
[Round "01"]
[TimeControl "180+1"]
[Date "2022.03.01"]
[WhiteClock "0:00:03"]
[BlackClock "0:00:31"]

1. d4 {[%clk 0:03:00]}  Nf6 {[%clk 0:02:55]} 2. c4 {[%clk 0:03:00]}  c5 {[%clk 0:02:49]} 3. d5 {[%clk 0:02:59]}  b5 {[%clk 0:02:49]} 4. cxb5 {[%clk 0:03:00]}  a6 {[%clk 0:02:49]} 5. e3 {[%clk 0:03:01]}  e6 {[%clk 0:02:48]} 6. dxe6 {[%clk 0:02:28]}  fxe6 {[%clk 0:02:46]} 7. Nf3 {[%clk 0:02:28]}  d5 {[%clk 0:02:35]} 8. Nc3 {[%clk 0:02:28]}  Nbd7 {[%clk 0:02:15]} 9. bxa6 {[%clk 0:02:15]}  Bd6 {[%clk 0:02:12]} 10. Nb5 {[%clk 0:02:05]}  Rxa6 {[%clk 0:02:04]} 11. Nxd6+ {[%clk 0:01:54]}  Rxd6 {[%clk 0:02:02]} 12. Be2 {[%clk 0:01:47]}  O-O {[%clk 0:02:01]} 13. O-O {[%clk 0:01:47]}  e5 {[%clk 0:01:57]} 14. b4 {[%clk 0:01:15]}  cxb4 {[%clk 0:01:36]} 15. Bb2 {[%clk 0:01:14]}  Qe7 {[%clk 0:01:16]} 16. Rc1 {[%clk 0:01:12]}  e4 {[%clk 0:01:10]} 17. Nd4 {[%clk 0:00:56]}  Ne5 {[%clk 0:01:10]} 18. Rxc8 {[%clk 0:00:35]}  Rxc8 {[%clk 0:01:08]} 19. Nf5 {[%clk 0:00:35]}  Qe6 {[%clk 0:01:08]} 20. Nxd6 {[%clk 0:00:35]}  Qxd6 {[%clk 0:01:08]} 21. Qb3 {[%clk 0:00:27]}  Nc4 {[%clk 0:00:51]} 22. Bd4 {[%clk 0:00:14]}  Nd2 {[%clk 0:00:50]} 23. Qb2 {[%clk 0:00:12]}  Nxf1 {[%clk 0:00:49]} 24. Bxf1 {[%clk 0:00:13]}  Ng4 {[%clk 0:00:39]} 25. g3 {[%clk 0:00:13]}  Rf8 {[%clk 0:00:39]} 26. Qe2 {[%clk 0:00:03]}  h5 {[%clk 0:00:32]} 27. h3 {[%clk 0:00:03]}  Rxf2 {[%clk 0:00:31]} 0-1


[Site "https://www.chess.com"]

[Event "Titled Tuesday Blitz March 01 Early 2022"]
[White "Makhnev, Denis"]
[Black "Estrada Nieto, Julian"]
[WhiteFideId "13707647"]
[BlackFideId "5101018"]
[WhiteElo "2491"]
[BlackElo "2246"]
[Result "1-0"]
[Round "01"]
[TimeControl "180+1"]
[Date "2022.03.01"]
[WhiteClock "0:00:04"]
[BlackClock "0:00:02"]

1. d4 {[%clk 0:03:00]}  d5 {[%clk 0:02:59]} 2. c4 {[%clk 0:03:01]}  dxc4 {[%clk 0:02:59]} 3. Nf3 {[%clk 0:03:01]}  Nf6 {[%clk 0:03:00]} 4. e3 {[%clk 0:03:01]}  e6 {[%clk 0:03:00]} 5. Bxc4 {[%clk 0:03:01]}  c5 {[%clk 0:03:00]} 6. O-O {[%clk 0:03:01]}  a6 {[%clk 0:03:01]} 7. dxc5 {[%clk 0:03:01]}  Bxc5 {[%clk 0:03:00]} 8. Qxd8+ {[%clk 0:03:00]}  Kxd8 {[%clk 0:03:01]} 9. Nfd2 {[%clk 0:03:01]}  Nc6 {[%clk 0:02:56]} 10. Nb3 {[%clk 0:03:00]}  Ba7 {[%clk 0:02:37]} 11. Nc3 {[%clk 0:02:54]}  Ke7 {[%clk 0:02:37]} 12. Be2 {[%clk 0:02:53]}  Bd7 {[%clk 0:02:36]} 13. Bd2 {[%clk 0:02:48]}  Rhd8 {[%clk 0:02:35]} 14. Rfc1 {[%clk 0:02:46]}  Rac8 {[%clk 0:02:34]} 15. Be1 {[%clk 0:02:45]}  Be8 {[%clk 0:02:33]} 16. a3 {[%clk 0:02:45]}  Ne5 {[%clk 0:02:11]} 17. Rd1 {[%clk 0:02:14]}  Bb6 {[%clk 0:01:59]} 18. Kf1 {[%clk 0:02:07]}  g5 {[%clk 0:01:56]} 19. e4 {[%clk 0:01:23]}  Rxd1 {[%clk 0:01:42]} 20. Rxd1 {[%clk 0:01:22]}  Nc4 {[%clk 0:01:42]} 21. Bxc4 {[%clk 0:01:11]}  Rxc4 {[%clk 0:01:41]} 22. f3 {[%clk 0:01:12]}  g4 {[%clk 0:01:36]} 23. Bf2 {[%clk 0:01:11]}  Bxf2 {[%clk 0:01:33]} 24. Kxf2 {[%clk 0:01:12]}  gxf3 {[%clk 0:01:33]} 25. gxf3 {[%clk 0:01:13]}  Nd7 {[%clk 0:01:19]} 26. Rg1 {[%clk 0:01:02]}  Kf8 {[%clk 0:01:17]} 27. Ke3 {[%clk 0:01:00]}  f6 {[%clk 0:01:03]} 28. Rd1 {[%clk 0:00:52]}  Ne5 {[%clk 0:00:59]} 29. Nd2 {[%clk 0:00:38]}  Rc7 {[%clk 0:00:56]} 30. Ne2 {[%clk 0:00:18]}  Rc2 {[%clk 0:00:43]} 31. Rb1 {[%clk 0:00:16]}  Rc7 {[%clk 0:00:38]} 32. Nd4 {[%clk 0:00:16]}  Ke7 {[%clk 0:00:37]} 33. h3 {[%clk 0:00:15]}  Nc4+ {[%clk 0:00:30]} 34. Nxc4 {[%clk 0:00:15]}  Rxc4 {[%clk 0:00:31]} 35. Rg1 {[%clk 0:00:16]}  Bg6 {[%clk 0:00:30]} 36. Kd3 {[%clk 0:00:15]}  b5 {[%clk 0:00:28]} 37. b3 {[%clk 0:00:13]}  Rc7 {[%clk 0:00:27]} 38. Ra1 {[%clk 0:00:13]}  e5 {[%clk 0:00:26]} 39. Ne2 {[%clk 0:00:13]}  f5 {[%clk 0:00:25]} 40. Nc3 {[%clk 0:00:12]}  fxe4+ {[%clk 0:00:24]} 41. fxe4 {[%clk 0:00:12]}  Ke6 {[%clk 0:00:24]} 42. a4 {[%clk 0:00:12]}  b4 {[%clk 0:00:23]} 43. Nd5 {[%clk 0:00:12]}  Rc5 {[%clk 0:00:23]} 44. Nxb4 {[%clk 0:00:12]}  a5 {[%clk 0:00:20]} 45. Na2 {[%clk 0:00:12]}  Rc6 {[%clk 0:00:19]} 46. Nc3 {[%clk 0:00:12]}  Rd6+ {[%clk 0:00:19]} 47. Ke3 {[%clk 0:00:12]}  Rd4 {[%clk 0:00:19]} 48. Rd1 {[%clk 0:00:08]}  Rb4 {[%clk 0:00:18]} 49. Rb1 {[%clk 0:00:09]}  h5 {[%clk 0:00:17]} 50. h4 {[%clk 0:00:09]}  Kd6 {[%clk 0:00:16]} 51. Rb2 {[%clk 0:00:07]}  Ke6 {[%clk 0:00:16]} 52. Rb1 {[%clk 0:00:08]}  Bh7 {[%clk 0:00:16]} 53. Kd3 {[%clk 0:00:05]}  Rd4+ {[%clk 0:00:13]} 54. Ke3 {[%clk 0:00:05]}  Rb4 {[%clk 0:00:13]} 55. Rb2 {[%clk 0:00:05]}  Bg6 {[%clk 0:00:13]} 56. Rg2 {[%clk 0:00:06]}  Kf7 {[%clk 0:00:07]} 57. Rf2+ {[%clk 0:00:05]}  Kg7 {[%clk 0:00:04]} 58. Kd3 {[%clk 0:00:03]}  Rxb3 {[%clk 0:00:03]} 59. Kc4 {[%clk 0:00:03]}  Rb4+ {[%clk 0:00:03]} 60. Kd5 {[%clk 0:00:04]}  Rd4+ {[%clk 0:00:04]} 61. Kxe5 {[%clk 0:00:04]}  Rd3 {[%clk 0:00:04]} 62. Nd5 {[%clk 0:00:04]}  Ra3 {[%clk 0:00:03]} 63. Rg2 {[%clk 0:00:01]}  Rxa4 {[%clk 0:00:04]} 64. Kd6 {[%clk 0:00:01]}  Rxe4 {[%clk 0:00:04]} 65. Ne7 {[%clk 0:00:02]}  Rxe7 {[%clk 0:00:03]} 66. Kxe7 {[%clk 0:00:02]}  a4 {[%clk 0:00:04]} 67. Rg5 {[%clk 0:00:02]}  Kh6 {[%clk 0:00:03]} 68. Ra5 {[%clk 0:00:03]}  Be4 {[%clk 0:00:03]} 69. Rxa4 {[%clk 0:00:01]}  Bf3 {[%clk 0:00:04]} 70. Ra6+ {[%clk 0:00:01]}  Kg7 {[%clk 0:00:04]} 71. Ke6 {[%clk 0:00:02]}  Kg6 {[%clk 0:00:03]} 72. Ke5+ {[%clk 0:00:02]}  Kg7 {[%clk 0:00:03]} 73. Kf4 {[%clk 0:00:03]}  Kf7 {[%clk 0:00:02]} 74. Rb6 {[%clk 0:00:04]} 1-0


[Site "https://www.chess.com"]

[Event "Titled Tuesday Blitz March 01 Early 2022"]
[White "Maltsevskaya, Aleksandra"]
[Black "Van den Dikkenberg, Erik"]
[WhiteFideId "24174041"]
[BlackFideId "1005880"]
[WhiteElo "2283"]
[BlackElo "2118"]
[Result "1-0"]
[Round "01"]
[TimeControl "180+1"]
[Date "2022.03.01"]
[WhiteClock "0:02:00"]
[BlackClock "0:01:08"]

1. Nf3 {[%clk 0:02:41]}  Nf6 {[%clk 0:02:58]} 2. c4 {[%clk 0:02:42]}  d6 {[%clk 0:02:52]} 3. Nc3 {[%clk 0:02:42]}  e5 {[%clk 0:02:53]} 4. d4 {[%clk 0:02:42]}  e4 {[%clk 0:02:51]} 5. Ng5 {[%clk 0:02:42]}  Bf5 {[%clk 0:02:51]} 6. Qb3 {[%clk 0:02:41]}  Qc8 {[%clk 0:02:40]} 7. c5 {[%clk 0:02:40]}  Bg6 {[%clk 0:02:34]} 8. h4 {[%clk 0:02:32]}  h5 {[%clk 0:02:32]} 9. e3 {[%clk 0:02:25]}  dxc5 {[%clk 0:02:26]} 10. Bc4 {[%clk 0:02:25]}  Be7 {[%clk 0:01:25]} 11. Bxf7+ {[%clk 0:02:23]}  Bxf7 {[%clk 0:01:25]} 12. Qxf7+ {[%clk 0:02:23]}  Kd8 {[%clk 0:01:25]} 13. Ne6+ {[%clk 0:02:19]}  Kd7 {[%clk 0:01:24]} 14. Nxc5+ {[%clk 0:02:17]}  Kd8 {[%clk 0:01:16]} 15. O-O {[%clk 0:02:11]}  Bxc5 {[%clk 0:01:11]} 16. dxc5 {[%clk 0:02:12]}  Nbd7 {[%clk 0:01:10]} 17. Rd1 {[%clk 0:02:05]}  c6 {[%clk 0:01:09]} 18. Ne2 {[%clk 0:02:00]}  Rf8 {[%clk 0:01:08]} 19. Qxf8+ {[%clk 0:02:00]} 1-0


[Site "https://www.chess.com"]

[Event "Titled Tuesday Blitz March 01 Early 2022"]
[White "Maranhao,Jose Renato Ruiz"]
[Black "Tasev, Dejan"]
[WhiteFideId "2135175"]
[BlackFideId "936618"]
[WhiteElo "1970"]
[BlackElo "2253"]
[Result "1/2-1/2"]
[Round "01"]
[TimeControl "180+1"]
[Date "2022.03.01"]
[WhiteClock "0:00:11"]
[BlackClock "0:00:31"]

1. e4 {[%clk 0:03:00]}  c6 {[%clk 0:02:59]} 2. d4 {[%clk 0:03:01]}  d5 {[%clk 0:02:59]} 3. e5 {[%clk 0:03:02]}  Bf5 {[%clk 0:02:59]} 4. Nf3 {[%clk 0:03:03]}  e6 {[%clk 0:02:59]} 5. Be2 {[%clk 0:03:03]}  Ne7 {[%clk 0:02:59]} 6. Be3 {[%clk 0:03:01]}  h6 {[%clk 0:03:00]} 7. Nbd2 {[%clk 0:03:01]}  Nd7 {[%clk 0:03:00]} 8. Nb3 {[%clk 0:03:01]}  g5 {[%clk 0:03:00]} 9. O-O {[%clk 0:02:56]}  Bg7 {[%clk 0:02:59]} 10. c4 {[%clk 0:02:57]}  dxc4 {[%clk 0:02:56]} 11. Bxc4 {[%clk 0:02:57]}  Nb6 {[%clk 0:02:55]} 12. Bd3 {[%clk 0:02:53]}  Bxd3 {[%clk 0:02:46]} 13. Qxd3 {[%clk 0:02:54]}  Ned5 {[%clk 0:02:45]} 14. Nc5 {[%clk 0:02:50]}  Qc7 {[%clk 0:02:38]} 15. Rac1 {[%clk 0:02:49]}  Nd7 {[%clk 0:02:27]} 16. Ne4 {[%clk 0:02:48]}  Bf8 {[%clk 0:02:25]} 17. a3 {[%clk 0:02:37]}  Be7 {[%clk 0:02:23]} 18. b4 {[%clk 0:02:23]}  a6 {[%clk 0:02:21]} 19. h3 {[%clk 0:02:07]}  f5 {[%clk 0:02:08]} 20. exf6 {[%clk 0:02:03]}  N7xf6 {[%clk 0:02:02]} 21. Nc5 {[%clk 0:02:03]}  Bxc5 {[%clk 0:01:58]} 22. bxc5 {[%clk 0:01:42]}  O-O {[%clk 0:01:53]} 23. h4 {[%clk 0:01:10]}  g4 {[%clk 0:01:42]} 24. Ne5 {[%clk 0:01:07]}  Qg7 {[%clk 0:01:38]} 25. Qg6 {[%clk 0:00:58]}  Nxe3 {[%clk 0:01:28]} 26. fxe3 {[%clk 0:00:55]}  Nd5 {[%clk 0:00:59]} 27. Qxg7+ {[%clk 0:00:46]}  Kxg7 {[%clk 0:00:59]} 28. Nxg4 {[%clk 0:00:46]}  h5 {[%clk 0:00:59]} 29. Ne5 {[%clk 0:00:20]}  Nxe3 {[%clk 0:00:57]} 30. Rxf8 {[%clk 0:00:19]}  Rxf8 {[%clk 0:00:57]} 31. Rb1 {[%clk 0:00:19]}  Nf5 {[%clk 0:00:48]} 32. Rxb7+ {[%clk 0:00:18]}  Kh6 {[%clk 0:00:48]} 33. Nf7+ {[%clk 0:00:11]}  Kg6 {[%clk 0:00:44]} 34. Ne5+ {[%clk 0:00:11]}  Kh6 {[%clk 0:00:43]} 35. Nf7+ {[%clk 0:00:11]}  Kg6 {[%clk 0:00:32]} 36. Ne5+ {[%clk 0:00:11]}  Kh6 {[%clk 0:00:31]} 1/2-1/2


[Site "https://www.chess.com"]

[Event "Titled Tuesday Blitz March 01 Early 2022"]
[White "Mikhailov, Viacheslav"]
[Black "Rudzinska, Michalina"]
[WhiteFideId "4187369"]
[BlackFideId "1172883"]
[WhiteElo "2381"]
[BlackElo "1904"]
[Result "1-0"]
[Round "01"]
[TimeControl "180+1"]
[Date "2022.03.01"]
[WhiteClock "0:01:20"]
[BlackClock "0:00:58"]

1. Nf3 {[%clk 0:03:00]}  d6 {[%clk 0:02:53]} 2. g3 {[%clk 0:03:00]}  e5 {[%clk 0:02:52]} 3. Bg2 {[%clk 0:03:00]}  g6 {[%clk 0:02:53]} 4. O-O {[%clk 0:03:00]}  Bg7 {[%clk 0:02:53]} 5. c4 {[%clk 0:03:01]}  Nc6 {[%clk 0:02:53]} 6. Nc3 {[%clk 0:03:00]}  f5 {[%clk 0:02:53]} 7. d3 {[%clk 0:02:59]}  Nf6 {[%clk 0:02:53]} 8. Bg5 {[%clk 0:02:59]}  O-O {[%clk 0:02:53]} 9. Nd5 {[%clk 0:02:58]}  Be6 {[%clk 0:02:49]} 10. Nd2 {[%clk 0:02:58]}  Kh8 {[%clk 0:02:43]} 11. b4 {[%clk 0:02:51]}  h6 {[%clk 0:02:43]} 12. Bxf6 {[%clk 0:02:43]}  Bxf6 {[%clk 0:02:42]} 13. Nxf6 {[%clk 0:02:44]}  Qxf6 {[%clk 0:02:42]} 14. b5 {[%clk 0:02:44]}  Nd8 {[%clk 0:02:42]} 15. e3 {[%clk 0:02:42]}  c6 {[%clk 0:02:37]} 16. bxc6 {[%clk 0:02:42]}  bxc6 {[%clk 0:02:38]} 17. Qa4 {[%clk 0:02:43]}  Bd7 {[%clk 0:02:37]} 18. Rab1 {[%clk 0:02:42]}  f4 {[%clk 0:02:33]} 19. Ne4 {[%clk 0:02:41]}  Qe7 {[%clk 0:02:32]} 20. c5 {[%clk 0:02:37]}  d5 {[%clk 0:02:29]} 21. Nd6 {[%clk 0:02:37]}  f3 {[%clk 0:02:30]} 22. Bh1 {[%clk 0:02:37]}  h5 {[%clk 0:02:27]} 23. Rb4 {[%clk 0:02:18]}  Nf7 {[%clk 0:02:27]} 24. Nxf7+ {[%clk 0:02:16]}  Qxf7 {[%clk 0:02:26]} 25. Rb7 {[%clk 0:02:15]}  a5 {[%clk 0:02:14]} 26. Rfb1 {[%clk 0:02:13]}  Rfc8 {[%clk 0:02:06]} 27. Qh4 {[%clk 0:02:05]}  Kg7 {[%clk 0:01:58]} 28. Qg5 {[%clk 0:02:03]}  Rd8 {[%clk 0:01:53]} 29. Qxe5+ {[%clk 0:02:02]}  Qf6 {[%clk 0:01:53]} 30. Qxf6+ {[%clk 0:02:01]}  Kxf6 {[%clk 0:01:54]} 31. Bxf3 {[%clk 0:02:02]}  Bf5 {[%clk 0:01:54]} 32. R1b6 {[%clk 0:01:56]}  Rac8 {[%clk 0:01:47]} 33. d4 {[%clk 0:01:54]}  Bd3 {[%clk 0:01:36]} 34. Ra7 {[%clk 0:01:44]}  Rb8 {[%clk 0:01:28]} 35. Rxc6+ {[%clk 0:01:38]}  Kg5 {[%clk 0:01:28]} 36. h4+ {[%clk 0:01:38]}  Kh6 {[%clk 0:01:28]} 37. Rb6 {[%clk 0:01:29]}  Rxb6 {[%clk 0:01:24]} 38. cxb6 {[%clk 0:01:30]}  Rb8 {[%clk 0:01:16]} 39. b7 {[%clk 0:01:29]}  Bc4 {[%clk 0:01:16]} 40. a3 {[%clk 0:01:29]}  g5 {[%clk 0:01:14]} 41. hxg5+ {[%clk 0:01:28]}  Kxg5 {[%clk 0:01:14]} 42. e4 {[%clk 0:01:26]}  Kf6 {[%clk 0:00:59]} 43. exd5 {[%clk 0:01:25]}  Ke7 {[%clk 0:00:58]} 44. Ra8 {[%clk 0:01:20]} 1-0


[Site "https://www.chess.com"]

[Event "Titled Tuesday Blitz March 01 Early 2022"]
[White "Munenga, Douglas D"]
[Black "Alavi, Sayed Javad"]
[WhiteFideId "8700680"]
[BlackFideId "12500607"]
[WhiteElo "2207"]
[BlackElo "2475"]
[Result "0-1"]
[Round "01"]
[TimeControl "180+1"]
[Date "2022.03.01"]
[WhiteClock "0:00:00"]
[BlackClock "0:00:21"]

1. e4 {[%clk 0:02:55]}  c5 {[%clk 0:03:00]} 2. Nf3 {[%clk 0:02:54]}  e6 {[%clk 0:03:00]} 3. c3 {[%clk 0:02:51]}  Nf6 {[%clk 0:02:58]} 4. e5 {[%clk 0:02:51]}  Nd5 {[%clk 0:02:59]} 5. d4 {[%clk 0:02:51]}  cxd4 {[%clk 0:03:00]} 6. Qxd4 {[%clk 0:02:47]}  Nc6 {[%clk 0:02:59]} 7. Qe4 {[%clk 0:02:47]}  d6 {[%clk 0:02:59]} 8. Bb5 {[%clk 0:02:44]}  Bd7 {[%clk 0:02:57]} 9. Na3 {[%clk 0:02:34]}  Nxe5 {[%clk 0:02:35]} 10. Nxe5 {[%clk 0:02:32]}  dxe5 {[%clk 0:02:36]} 11. Qxe5 {[%clk 0:02:31]}  Bxb5 {[%clk 0:02:03]} 12. Nxb5 {[%clk 0:02:29]}  a6 {[%clk 0:02:04]} 13. Nd4 {[%clk 0:02:28]}  Qd6 {[%clk 0:02:04]} 14. Qg5 {[%clk 0:02:12]}  g6 {[%clk 0:01:44]} 15. O-O {[%clk 0:02:07]}  Bg7 {[%clk 0:01:45]} 16. Nf3 {[%clk 0:02:07]}  h6 {[%clk 0:01:34]} 17. Qd2 {[%clk 0:01:56]}  O-O-O {[%clk 0:01:20]} 18. a4 {[%clk 0:01:50]}  g5 {[%clk 0:01:17]} 19. Qc2 {[%clk 0:01:40]}  g4 {[%clk 0:01:05]} 20. Nd4 {[%clk 0:01:39]}  Bxd4 {[%clk 0:01:01]} 21. cxd4+ {[%clk 0:01:38]}  Kb8 {[%clk 0:01:02]} 22. Rd1 {[%clk 0:01:32]}  Rdg8 {[%clk 0:00:59]} 23. Bd2 {[%clk 0:01:13]}  h5 {[%clk 0:00:57]} 24. b4 {[%clk 0:01:10]}  h4 {[%clk 0:00:45]} 25. b5 {[%clk 0:01:08]}  g3 {[%clk 0:00:45]} 26. bxa6 {[%clk 0:01:00]}  gxf2+ {[%clk 0:00:39]} 27. Kh1 {[%clk 0:00:57]}  h3 {[%clk 0:00:23]} 28. g3 {[%clk 0:00:54]}  Rxg3 {[%clk 0:00:23]} 29. Qc5 {[%clk 0:00:37]}  Qxc5 {[%clk 0:00:20]} 30. dxc5 {[%clk 0:00:37]}  Rf3 {[%clk 0:00:18]} 31. axb7 {[%clk 0:00:35]}  Kxb7 {[%clk 0:00:19]} 32. Rf1 {[%clk 0:00:32]}  Rc8 {[%clk 0:00:15]} 33. Rac1 {[%clk 0:00:30]}  e5 {[%clk 0:00:15]} 34. Rc2 {[%clk 0:00:19]}  e4 {[%clk 0:00:14]} 35. Bc1 {[%clk 0:00:19]}  e3 {[%clk 0:00:14]} 36. Bxe3 {[%clk 0:00:19]}  Nxe3 {[%clk 0:00:13]} 37. Rcxf2 {[%clk 0:00:19]}  Rxf2 {[%clk 0:00:14]} 38. Rxf2 {[%clk 0:00:19]}  Rxc5 {[%clk 0:00:14]} 39. Rxf7+ {[%clk 0:00:18]}  Ka6 {[%clk 0:00:15]} 40. Kg1 {[%clk 0:00:18]}  Rc1+ {[%clk 0:00:14]} 41. Kf2 {[%clk 0:00:18]}  Rf1+ {[%clk 0:00:15]} 42. Kxe3 {[%clk 0:00:17]}  Rxf7 {[%clk 0:00:16]} 43. Ke4 {[%clk 0:00:05]}  Rg7 {[%clk 0:00:17]} 44. Kf3 {[%clk 0:00:04]}  Rg2 {[%clk 0:00:17]} 45. Ke3 {[%clk 0:00:03]}  Rxh2 {[%clk 0:00:18]} 46. Kf3 {[%clk 0:00:02]}  Rg2 {[%clk 0:00:19]} 47. Ke3 {[%clk 0:00:02]}  Ka5 {[%clk 0:00:20]} 48. Kf3 {[%clk 0:00:01]}  Rg7 {[%clk 0:00:20]} 49. Kf2 {[%clk 0:00:00]}  Rg8 {[%clk 0:00:21]} 0-1


[Site "https://www.chess.com"]

[Event "Titled Tuesday Blitz March 01 Early 2022"]
[White "Muradli, Mahammad"]
[Black "Jaskolka, Tomasz"]
[WhiteFideId "13409301"]
[BlackFideId "1170791"]
[WhiteElo "2645"]
[BlackElo "2054"]
[Result "1-0"]
[Round "01"]
[TimeControl "180+1"]
[Date "2022.03.01"]
[WhiteClock "0:00:37"]
[BlackClock "0:00:06"]

1. g3 {[%clk 0:03:00]}  d5 {[%clk 0:02:58]} 2. Bg2 {[%clk 0:02:59]}  e5 {[%clk 0:02:58]} 3. d3 {[%clk 0:02:54]}  Nf6 {[%clk 0:02:58]} 4. Bg5 {[%clk 0:02:51]}  c6 {[%clk 0:02:56]} 5. Nd2 {[%clk 0:02:47]}  Be7 {[%clk 0:02:53]} 6. e4 {[%clk 0:02:43]}  Be6 {[%clk 0:02:53]} 7. Ne2 {[%clk 0:02:41]}  h6 {[%clk 0:02:53]} 8. Bxf6 {[%clk 0:02:41]}  Bxf6 {[%clk 0:02:54]} 9. O-O {[%clk 0:02:38]}  Nd7 {[%clk 0:02:34]} 10. exd5 {[%clk 0:02:27]}  cxd5 {[%clk 0:02:35]} 11. c4 {[%clk 0:02:28]}  Nb6 {[%clk 0:02:30]} 12. Nc3 {[%clk 0:02:27]}  O-O {[%clk 0:02:24]} 13. Qe2 {[%clk 0:02:19]}  Rc8 {[%clk 0:02:21]} 14. Rad1 {[%clk 0:02:12]}  Qd7 {[%clk 0:02:08]} 15. Rfe1 {[%clk 0:02:10]}  Rfd8 {[%clk 0:02:01]} 16. Nf3 {[%clk 0:01:52]}  dxc4 {[%clk 0:01:38]} 17. dxc4 {[%clk 0:01:53]}  Qc7 {[%clk 0:01:39]} 18. b3 {[%clk 0:01:52]}  Rxd1 {[%clk 0:01:36]} 19. Rxd1 {[%clk 0:01:52]}  Re8 {[%clk 0:01:34]} 20. Nd5 {[%clk 0:01:47]}  Bxd5 {[%clk 0:01:28]} 21. cxd5 {[%clk 0:01:48]}  Nc8 {[%clk 0:01:29]} 22. Nd2 {[%clk 0:01:45]}  Nd6 {[%clk 0:01:28]} 23. Nc4 {[%clk 0:01:34]}  Nxc4 {[%clk 0:01:22]} 24. Qxc4 {[%clk 0:01:31]}  Qd6 {[%clk 0:01:13]} 25. Qa4 {[%clk 0:01:29]}  Ra8 {[%clk 0:01:09]} 26. Rc1 {[%clk 0:01:29]}  a6 {[%clk 0:01:05]} 27. h4 {[%clk 0:01:28]}  g6 {[%clk 0:01:04]} 28. Qa5 {[%clk 0:01:25]}  Kg7 {[%clk 0:01:01]} 29. Qc7 {[%clk 0:01:17]}  Qxc7 {[%clk 0:00:42]} 30. Rxc7 {[%clk 0:01:18]}  b6 {[%clk 0:00:41]} 31. d6 {[%clk 0:01:11]}  Rd8 {[%clk 0:00:41]} 32. d7 {[%clk 0:01:05]}  Be7 {[%clk 0:00:39]} 33. Bc6 {[%clk 0:01:02]}  Kf6 {[%clk 0:00:37]} 34. Rb7 {[%clk 0:00:57]}  Bc5 {[%clk 0:00:34]} 35. b4 {[%clk 0:00:52]}  Bd4 {[%clk 0:00:34]} 36. Ra7 {[%clk 0:00:51]}  Ke7 {[%clk 0:00:24]} 37. Rxa6 {[%clk 0:00:51]}  Kd6 {[%clk 0:00:25]} 38. Bb5 {[%clk 0:00:48]}  f5 {[%clk 0:00:25]} 39. Kg2 {[%clk 0:00:45]}  f4 {[%clk 0:00:25]} 40. gxf4 {[%clk 0:00:46]}  exf4 {[%clk 0:00:26]} 41. Kf3 {[%clk 0:00:46]}  g5 {[%clk 0:00:26]} 42. hxg5 {[%clk 0:00:47]}  hxg5 {[%clk 0:00:27]} 43. Ra3 {[%clk 0:00:45]}  Ke7 {[%clk 0:00:25]} 44. Rd3 {[%clk 0:00:43]}  Be5 {[%clk 0:00:25]} 45. a4 {[%clk 0:00:42]}  Bd6 {[%clk 0:00:25]} 46. a5 {[%clk 0:00:41]}  Bxb4 {[%clk 0:00:20]} 47. a6 {[%clk 0:00:40]}  Ke6 {[%clk 0:00:17]} 48. a7 {[%clk 0:00:38]}  Bc5 {[%clk 0:00:04]} 49. Bc6 {[%clk 0:00:36]}  b5 {[%clk 0:00:05]} 50. a8=Q {[%clk 0:00:36]}  Rxa8 {[%clk 0:00:05]} 51. Bxa8 {[%clk 0:00:37]}  Bd6 {[%clk 0:00:06]} 52. d8=Q {[%clk 0:00:37]} 1-0


[Site "https://www.chess.com"]